[Event "1st Turkish League 2017"]
[Site "Konya"]
[Date "2017.07.18"]
[Round "3"]
[White "Sertbay, Huseyin"]
[Black "Akdag, Omer Amir"]
[Result "1-0"]
[ECO "E40"]
[WhiteElo "2027"]
[BlackElo "1685"]
[Annotator "NA"]
[PlyCount "127"]
[EventType "team-tourn"]
[EventCountry "TUR"]
[SourceTitle "playchess.com"]
[Source "ChessBase"]
[SourceQuality "1"]
[TimeControl "5400+30"]

1. d4 {[%emt 0:00:30]} Nf6 {[%emt 0:01:00]} 2. c4 {[%emt 0:00:00]} e6 {[%emt 0:00:30]} 3. Nc3 {[%emt 0:00:00]} Bb4 {[%emt 0:00:30]} 4. e3 {[%emt 0:00:30]} d5 {[%emt 0:00:00]} 5. Qa4+ {[%emt 0:04:30]} Nc6 {[%emt 0:01:00]} 6. a3 {[%emt 0:00:00]} Bxc3+ {[%emt 0:01:30]} 7. bxc3 {[%emt 0:00:00]} O-O {[%emt 0:01:30]} 8. Nf3 {[%emt 0:00:30]} Re8 {[%emt 0:03:30]} 9. Be2 {[%emt 0:05:30]} Ne7 {[%emt 0:10:30]} 10. O-O {[%emt 0:06:30]} Ng6 {[%emt 0:06:30]} 11. Qb3 {[%emt 0:08:30]} c6 {[%emt 0:01:30]} 12. Rd1 {[%emt 0:13:30]} Qc7 {[%emt 0:04:30]} 13. Bb2 {[%emt 0:07:30]} b6 {[%emt 0:14:30]} 14. cxd5 {[%emt 0:06:30]} exd5 {[%emt 0:01:30]} 15. c4 {[%emt 0:02:30]} Be6 {[%emt 0:15:30]} 16. Rac1 {[%emt 0:02:30]} Rac8 {[%emt 0:02:30]} 17. h3 {[%emt 0:18:30]} Qd7 {[%emt 0:10:30]} 18. Ne5 {[%emt 0:01:30]} Qc7 {[%emt 0:03:53]} 19. Qc2 {[%emt 0:02:43]} Qb8 {[%emt 0:06:15]} 20. Bd3 {[%emt 0:05:41]} c5 {[%emt 0:01:41]} 21. Nxg6 {[%emt 0:01:18]} hxg6 {[%emt 0:00:06]} 22. dxc5 {[%emt 0:01:03]} Rxc5 {[%emt 0:02:06]} 23. Qe2 {[%emt 0:06:13]} Ne4 {[%emt 0:05:55]} 24. cxd5 {[%emt 0:01:26]} Bxd5 {[%emt 0:00:08]} 25. Bd4 {[%emt 0:01:41]} Rxc1 {[%emt 0:01:12]} 26. Rxc1 {[%emt 0:00:30]} Rc8 {[%emt 0:00:01]} 27. Qb2 {[%emt 0:00:00]} Rxc1+ {[%emt 0:01:52]} 28. Qxc1 {[%emt 0:00:27]} Qd8 {[%emt 0:01:29]} 29. Qb2 {[%emt 0:01:19]} Qg5 {[%emt 0:01:50]} 30. f3 {[%emt 0:01:41]} Nc5 {[%emt 0:00:51]} 31. Be2 {[%emt 0:01:45]} Ne6 {[%emt 0:00:09]} 32. Kf2 {[%emt 0:00:38]} Qh4+ {[%emt 0:00:49]} 33. Kf1 {[%emt 0:00:21]} Nxd4 {[%emt 0:00:37]} 34. exd4 {[%emt 0:00:25]} Qe7 {[%emt 0:00:44]} 35. Qc3 {[%emt 0:00:05]} Qd7 {[%emt 0:00:21]} 36. Kf2 {[%emt 0:00:36]} Qc6 {[%emt 0:00:30]} 37. Qxc6 {[%emt 0:00:30]} Bxc6 {[%emt 0:00:30]} 38. Ke3 {[%emt 0:00:30]} Kf8 {[%emt 0:00:30]} 39. Bc4 {[%emt 0:00:30]} f6 {[%emt 0:00:30]} 40. h4 {[%emt 0:00:30]} Ke7 {[%emt 0:00:00]} 41. Kf4 {[%emt 0:00:54]} b5 {[%emt 0:00:00]} 42. Bd3 {[%emt 0:00:12]} Be8 {[%emt 0:00:26]} 43. g4 {[%emt 0:00:30]} Kd6 {[%emt 0:00:00]} 44. g5 {[%emt 0:00:28]} Kd5 {[%emt 0:00:33]} 45. Ke3 {[%emt 0:00:02]} f5 {[%emt 0:00:01]} 46. f4 {[%emt 0:01:17]} Kc6 {[%emt 0:00:55]} 47. h5 {[%emt 0:00:55]} gxh5 {[%emt 0:00:30]} 48. Bxf5 {[%emt 0:00:30]} g6 {[%emt 0:00:30]} 49. Be4+ {[%emt 0:00:30]} Kd6 {[%emt 0:00:30]} 50. f5 {[%emt 0:00:00]} gxf5 {[%emt 0:00:54]} 51. Bxf5 {[%emt 0:00:13]} Ke7 {[%emt 0:00:30]} 52. d5 {[%emt 0:00:30]} Kd6 {[%emt 0:00:30]} 53. Kd4 {[%emt 0:00:30]} h4 {[%emt 0:00:30]} 54. g6 {[%emt 0:00:00]} h3 {[%emt 0:00:00]} 55. g7 {[%emt 0:00:00]} Bf7 {[%emt 0:00:08]} 56. Be6 {[%emt 0:00:27]} Ke7 {[%emt 0:01:06]} 57. Bxh3 {[%emt 0:00:32]} Kf6 {[%emt 0:01:26]} 58. d6 {[%emt 0:00:14]} a5 {[%emt 0:00:45]} 59. Kc5 {[%emt 0:00:42]} b4 {[%emt 0:00:24]} 60. axb4 {[%emt 0:01:05]} a4 {[%emt 0:00:30]} 61. Kd4 {[%emt 0:00:00]} a3 {[%emt 0:00:06]} 62. Kc3 {[%emt 0:00:00]} Bd5 {[%emt 0:00:17]} 63. b5 {[%emt 0:00:42]} Kf7 {[%emt 0:00:20]} 64. g8=Q+ {[%emt 0:00:00]} 1-0

[Event "1st Turkish League 2017"]
[Site "Konya"]
[Date "2017.07.18"]
[Round "3"]
[White "Hajiyev, Shahin"]
[Black "Gur, Erdal Eren"]
[Result "0-1"]
[ECO "D36"]
[WhiteElo "2008"]
[BlackElo "1996"]
[Annotator "NA"]
[PlyCount "86"]
[EventType "team-tourn"]
[EventCountry "TUR"]
[SourceTitle "playchess.com"]
[Source "ChessBase"]
[SourceQuality "1"]
[TimeControl "5400+30"]

1. d4 {[%emt 0:00:30]} d5 {[%emt 0:01:00]} 2. c4 {[%emt 0:00:30]} e6 {[%emt 0:00:30]} 3. Nc3 {[%emt 0:00:30]} Nf6 {[%emt 0:00:00]} 4. Bg5 {[%emt 0:00:30]} Nbd7 {[%emt 0:00:00]} 5. cxd5 {[%emt 0:00:00]} exd5 {[%emt 0:00:00]} 6. e3 {[%emt 0:00:00]} c6 {[%emt 0:00:00]} 7. Qc2 {[%emt 0:00:30]} Be7 {[%emt 0:00:30]} 8. Nf3 {[%emt 0:00:30]} O-O {[%emt 0:00:30]} 9. Bd3 {[%emt 0:00:00]} Re8 {[%emt 0:00:30]} 10. O-O {[%emt 0:00:00]} Nf8 {[%emt 0:01:30]} 11. Ne5 {[%emt 0:06:30]} Ng4 {[%emt 0:02:30]} 12. Bxe7 {[%emt 0:00:30]} Qxe7 {[%emt 0:00:00]} 13. Nxg4 {[%emt 0:00:30]} Bxg4 {[%emt 0:00:00]} 14. Rae1 {[%emt 0:00:30]} Qf6 {[%emt 0:00:30]} 15. f4 {[%emt 0:00:30]} Rad8 {[%emt 0:03:30]} 16. f5 {[%emt 0:00:30]} Qg5 {[%emt 0:02:30]} 17. Qf2 {[%emt 0:01:30]} h5 {[%emt 0:02:30]} 18. e4 {[%emt 0:03:30]} h4 {[%emt 0:00:30]} 19. e5 {[%emt 0:01:30]} f6 {[%emt 0:02:30]} 20. Qf4 {[%emt 0:07:30]} h3 {[%emt 0:06:30]} 21. Qxg5 {[%emt 0:07:30]} fxg5 {[%emt 0:00:00]} 22. b4 {[%emt 0:02:30]} g6 {[%emt 0:03:00]} 23. gxh3 {[%emt 0:19:30]} Bxh3 {[%emt 0:00:30]} 24. Rf3 {[%emt 0:00:30]} Bxf5 {[%emt 0:00:30]} 25. Bxf5 {[%emt 0:01:30]} gxf5 {[%emt 0:00:30]} 26. Rxf5 {[%emt 0:00:30]} Ne6 {[%emt 0:00:00]} 27. Ne2 {[%emt 0:00:30]} Rf8 {[%emt 0:00:00]} 28. Ref1 {[%emt 0:00:30]} Rxf5 {[%emt 0:01:30]} 29. Rxf5 {[%emt 0:00:30]} Rf8 {[%emt 0:00:30]} 30. Rxf8+ {[%emt 0:00:30]} Kxf8 {[%emt 0:00:00]} 31. Kf2 {[%emt 0:00:30]} Kg7 {[%emt 0:00:00]} 32. Kf3 {[%emt 0:01:30]} Kg6 {[%emt 0:00:00]} 33. Kg4 {[%emt 0:00:30]} b6 {[%emt 0:00:00]} 34. a3 {[%emt 0:07:30]} b5 {[%emt 0:07:30]} 35. h4 {[%emt 0:03:30]} gxh4 {[%emt 0:00:30]} 36. Nf4+ {[%emt 0:00:00]} Nxf4 {[%emt 0:00:00]} 37. Kxf4 {[%emt 0:00:00]} Kf7 {[%emt 0:00:00]} 38. Kg4 {[%emt 0:00:30]} c5 {[%emt 0:00:00]} 39. dxc5 {[%emt 0:05:30]} d4 {[%emt 0:00:00]} 40. a4 {[%emt 0:01:30]} d3 {[%emt 0:00:00]} 41. Kf3 {[%emt 0:00:00]} d2 {[%emt 0:01:00]} 42. Ke2 {[%emt 0:00:00]} d1=Q+ {[%emt 0:00:30]} 43. Kxd1 {[%emt 0:00:30]} h3 {[%emt 0:00:00]} 0-1

[Event "1st Turkish League 2017"]
[Site "Konya"]
[Date "2017.07.18"]
[Round "3"]
[White "Aydincelebi, Kagan"]
[Black "Bashirli, Nail"]
[Result "0-1"]
[ECO "B03"]
[WhiteElo "1975"]
[BlackElo "2352"]
[Annotator "NA"]
[PlyCount "76"]
[EventType "team-tourn"]
[EventCountry "TUR"]
[SourceTitle "playchess.com"]
[Source "ChessBase"]
[SourceQuality "1"]
[TimeControl "5400+30"]

1. e4 {[%emt 0:00:30]} Nf6 {[%emt 0:01:00]} 2. e5 {[%emt 0:00:30]} Nd5 {[%emt 0:00:00]} 3. c4 {[%emt 0:00:30]} Nb6 {[%emt 0:00:00]} 4. d4 {[%emt 0:00:30]} d6 {[%emt 0:00:30]} 5. f4 {[%emt 0:00:30]} dxe5 {[%emt 0:00:00]} 6. fxe5 {[%emt 0:00:00]} Nc6 {[%emt 0:00:00]} 7. Be3 {[%emt 0:00:00]} Bf5 {[%emt 0:00:30]} 8. Nc3 {[%emt 0:00:00]} e6 {[%emt 0:00:00]} 9. Nf3 {[%emt 0:00:00]} Be7 {[%emt 0:00:00]} 10. Be2 {[%emt 0:00:00]} O-O {[%emt 0:00:30]} 11. O-O {[%emt 0:00:00]} f6 {[%emt 0:00:00]} 12. exf6 {[%emt 0:00:00]} Bxf6 {[%emt 0:00:00]} 13. Qd2 {[%emt 0:04:00]} Qe7 {[%emt 0:00:00]} 14. Rad1 {[%emt 0:00:30]} Rad8 {[%emt 0:00:00]} 15. b3 {[%emt 0:06:30] B03: Alekhine's Defence: Four Pawns Attack} (15. Qc1 Kh8 16. h3 Bg6 17. b3 Rd7 18. d5 exd5 19. Nxd5 Nxd5 20. cxd5 Nb4 21. Bc5 Qxe2 22. Bxf8 Nd3 23. Qc4 Qe3+ {1-0 (34) Dzhumaev,M (2457)-David,A (2569) New Delhi 2017}) 15... h6 {[%emt 0:10:30]} 16. Qe1 {[%emt 0:06:30]} e5 $146 {[%emt 0:05:30]} ({Predecessor:} 16... Kh8 17. Qg3 a6 18. Rd2 Bh7 19. Kh1 Rd7 20. Rdd1 Rfd8 21. Bf4 Nxd4 22. Rxd4 Rxd4 23. Bxc7 R4d6 24. Bxd8 Rxd8 25. Ne5 Nd7 26. Nxd7 Qxd7 27. Rd1 Qe7 28. h3 Bf5 {½-½ (28) Rau,J-Hustert,D Germany 1996}) 17. d5 {[%emt 0:08:30]} Nd4 {[%emt 0:01:30]} 18. Qf2 {[%emt 0:07:30]} Nxe2+ {[%emt 0:00:30]} 19. Qxe2 {[%emt 0:03:30]} e4 {[%emt 0:02:30]} 20. Nd4 {[%emt 0:04:30]} Bxd4 {[%emt 0:00:30]} 21. Bxd4 {[%emt 0:01:30]} c5 {[%emt 0:03:30]} 22. dxc6 {[%emt 0:14:30]} bxc6 {[%emt 0:00:30]} 23. Qe3 {[%emt 0:00:30]} Qe6 {[%emt 0:03:30]} 24. h3 {[%emt 0:19:30]} Rd7 {[%emt 0:15:30]} 25. Rd2 {[%emt 0:03:01]} Rfd8 {[%emt 0:01:30]} 26. Rfd1 {[%emt 0:00:18]} Qg6 {[%emt 0:02:30]} 27. Kh1 {[%emt 0:04:19]} h5 {[%emt 0:08:30]} 28. a4 {[%emt 0:02:51]} Nc8 {[%emt 0:02:30]} 29. a5 $16 {[%emt 0:00:40]} Re8 {[%emt 0:03:30]} 30. Na4 {[%emt 0:02:17]} Rf7 {[%emt 0:00:00]} 31. a6 {[%emt 0:01:43]} Kh7 {[%emt 0:04:00]} 32. Bc5 {[%emt 0:02:01]} Ne7 {[%emt 0:02:30]} 33. Rd6 {[%emt 0:00:41]} Be6 {[%emt 0:00:30]} 34. Rd8 {[%emt 0:03:16]} Rxd8 {[%emt 0:00:30]} 35. Rxd8 {[%emt 0:00:01]} Rf1+ {[%emt 0:00:30]} 36. Kh2 {[%emt 0:00:22]} Nf5 {[%emt 0:00:30]} 37. Qc3 {[%emt 0:00:17]} h4 {[%emt 0:00:00]} 38. Bd6 {[%emt 0:00:56]} Rf2 {[%emt 0:00:00]} 0-1

[Event "1st Turkish League 2017"]
[Site "Konya"]
[Date "2017.07.18"]
[Round "3"]
[White "Yerden, Huseyin Eren"]
[Black "Altun, Arda"]
[Result "1-0"]
[ECO "E11"]
[WhiteElo "1904"]
[BlackElo "1908"]
[Annotator "NA"]
[PlyCount "201"]
[EventType "team-tourn"]
[EventCountry "TUR"]
[SourceTitle "playchess.com"]
[Source "ChessBase"]
[SourceQuality "1"]
[TimeControl "5400+30"]

1. d4 {[%emt 0:00:30]} Nf6 {[%emt 0:01:00]} 2. c4 {[%emt 0:01:30]} e6 {[%emt 0:00:30]} 3. g3 {[%emt 0:00:00]} Bb4+ {[%emt 0:00:00]} 4. Bd2 {[%emt 0:00:00]} Qe7 {[%emt 0:00:00]} 5. Bg2 {[%emt 0:00:30]} Nc6 {[%emt 0:00:30]} 6. Nf3 {[%emt 0:00:30]} Ne4 {[%emt 0:04:30]} 7. a3 {[%emt 0:04:30]} Bxd2+ {[%emt 0:04:30]} 8. Nfxd2 {[%emt 0:01:30]} Nf6 {[%emt 0:01:30]} 9. d5 {[%emt 0:06:30]} Ne5 {[%emt 0:09:30]} 10. O-O {[%emt 0:07:30]} O-O {[%emt 0:04:30]} 11. e4 {[%emt 0:04:30]} Qc5 {[%emt 0:05:30]} 12. Qe2 {[%emt 0:03:30]} Re8 {[%emt 0:06:30]} 13. Nc3 {[%emt 0:02:30]} b6 {[%emt 0:03:30]} 14. b4 {[%emt 0:02:30]} Qe7 {[%emt 0:05:30]} 15. f4 {[%emt 0:00:30]} Ng6 {[%emt 0:00:30]} 16. Rae1 {[%emt 0:04:30]} e5 {[%emt 0:04:30]} 17. f5 {[%emt 0:02:30]} Nh8 {[%emt 0:02:30]} 18. g4 {[%emt 0:01:30]} g5 {[%emt 0:03:30]} 19. h4 {[%emt 0:02:30]} h6 {[%emt 0:01:30]} 20. hxg5 {[%emt 0:00:30]} hxg5 {[%emt 0:00:00]} 21. Nb5 {[%emt 0:00:30]} d6 {[%emt 0:03:00]} 22. Bf3 {[%emt 0:02:30]} a6 {[%emt 0:01:30]} 23. Nc3 {[%emt 0:00:30]} Kg7 {[%emt 0:05:30]} 24. Kg2 {[%emt 0:02:30]} Ng8 {[%emt 0:01:30]} 25. Rh1 {[%emt 0:01:30]} f6 {[%emt 0:00:30]} 26. Rh2 {[%emt 0:02:30]} Nf7 {[%emt 0:00:30]} 27. Nf1 {[%emt 0:01:30]} Nfh6 {[%emt 0:02:30]} 28. Ng3 {[%emt 0:01:30]} Bd7 {[%emt 0:02:30]} 29. Nh5+ {[%emt 0:01:30]} Kf7 {[%emt 0:00:00]} 30. Qe3 {[%emt 0:00:30]} a5 {[%emt 0:01:00]} 31. b5 {[%emt 0:00:30]} Rf8 {[%emt 0:02:30]} 32. Reh1 {[%emt 0:03:30]} Ke8 {[%emt 0:04:30]} 33. Ng3 {[%emt 0:00:30]} Qg7 {[%emt 0:01:30]} 34. Na4 {[%emt 0:00:30]} Rb8 {[%emt 0:00:34]} 35. Rh3 {[%emt 0:00:30]} Rf7 {[%emt 0:00:31]} 36. Kf1 {[%emt 0:01:30]} Ke7 {[%emt 0:00:47]} 37. Ke1 {[%emt 0:02:30]} Kd8 {[%emt 0:02:53]} 38. Kd2 {[%emt 0:00:30]} Qf8 {[%emt 0:00:22]} 39. Kc3 {[%emt 0:00:00]} Ke8 {[%emt 0:00:57]} 40. Kb2 {[%emt 0:00:00]} Ke7 {[%emt 0:00:56]} 41. R3h2 {[%emt 0:00:30]} Rh7 {[%emt 0:00:19]} 42. Ka2 {[%emt 0:00:00]} Rb7 {[%emt 0:00:50]} 43. Nh5 {[%emt 0:00:00]} Rb8 {[%emt 0:00:15]} 44. Qc3 {[%emt 0:00:30]} Qc8 {[%emt 0:01:47]} 45. Qd2 {[%emt 0:00:30]} Be8 {[%emt 0:01:48]} 46. Ng3 {[%emt 0:00:30]} Bd7 {[%emt 0:00:13]} 47. Nf1 {[%emt 0:00:30]} Kf8 {[%emt 0:01:14]} 48. Ne3 {[%emt 0:00:30]} Qe8 {[%emt 0:01:03]} 49. Bd1 {[%emt 0:00:00]} Ke7 {[%emt 0:00:16]} 50. Bb3 {[%emt 0:00:00]} Kf8 {[%emt 0:00:19]} 51. Nb2 {[%emt 0:00:30]} Qc8 {[%emt 0:01:13]} 52. a4 {[%emt 0:00:30]} Ra8 {[%emt 0:00:35]} 53. Kb1 {[%emt 0:00:30]} Qb8 {[%emt 0:00:59]} 54. Kc2 {[%emt 0:01:30]} Ke7 {[%emt 0:01:05]} 55. Rh3 {[%emt 0:00:00]} Kf7 {[%emt 0:00:40]} 56. Nd3 {[%emt 0:00:00]} Kg7 {[%emt 0:01:01]} 57. R1h2 {[%emt 0:00:30]} Kf7 {[%emt 0:00:08]} 58. Qe1 {[%emt 0:00:30]} Kg7 {[%emt 0:00:41]} 59. Kb2 {[%emt 0:00:30]} Kf7 {[%emt 0:00:00]} 60. Qh1 {[%emt 0:00:30]} Kg7 {[%emt 0:00:16]} 61. Rh5 {[%emt 0:00:30]} Be8 {[%emt 0:00:30]} 62. R5h3 {[%emt 0:00:30]} Bd7 {[%emt 0:00:00]} 63. Ba2 {[%emt 0:01:30]} Be8 {[%emt 0:00:18]} 64. Nc1 {[%emt 0:00:30]} Bd7 {[%emt 0:00:50]} 65. Nb3 {[%emt 0:00:00]} Ra7 {[%emt 0:03:21]} 66. Nf1 {[%emt 0:01:00]} Ra8 {[%emt 0:00:52]} 67. Ng3 {[%emt 0:00:00]} Qd8 {[%emt 0:00:58]} 68. Ka1 {[%emt 0:00:00]} Ra7 {[%emt 0:00:30]} 69. Nd2 {[%emt 0:00:30]} Qf8 {[%emt 0:00:14]} 70. Kb2 {[%emt 0:01:30]} Qd8 {[%emt 0:00:07]} 71. Nf3 {[%emt 0:01:30]} Be8 {[%emt 0:00:57]} 72. Qc1 {[%emt 0:00:30]} Kf8 {[%emt 0:00:15]} 73. Bb3 {[%emt 0:00:30]} Ra8 {[%emt 0:00:24]} 74. Qd2 {[%emt 0:01:30]} Qe7 {[%emt 0:00:48]} 75. Nf1 {[%emt 0:00:30]} Qd8 {[%emt 0:01:02]} 76. Ne3 {[%emt 0:00:30]} Qb8 {[%emt 0:00:03]} 77. Kc1 {[%emt 0:01:30]} Bd7 {[%emt 0:00:15]} 78. Kd1 {[%emt 0:00:30]} Be8 {[%emt 0:00:30]} 79. Ke2 {[%emt 0:00:30]} Bd7 {[%emt 0:00:30]} 80. Kf1 {[%emt 0:00:30]} Ra7 {[%emt 0:00:30]} 81. Kg1 {[%emt 0:00:30]} Qd8 {[%emt 0:00:39]} 82. Bd1 {[%emt 0:01:30]} Be8 {[%emt 0:00:16]} 83. Qc3 {[%emt 0:00:00]} Kg7 {[%emt 0:00:30]} 84. Nd2 {[%emt 0:00:00]} Ne7 {[%emt 0:03:17]} 85. c5 {[%emt 0:00:30]} dxc5 {[%emt 0:00:53]} 86. Ndc4 {[%emt 0:00:30]} Neg8 {[%emt 0:04:27]} 87. Bb3 {[%emt 0:00:00]} Bf7 {[%emt 0:00:09]} 88. Rd2 {[%emt 0:01:00]} Ne7 {[%emt 0:01:01]} 89. Rdh2 {[%emt 0:00:30]} Neg8 {[%emt 0:00:49]} 90. Ba2 {[%emt 0:01:30]} Ra8 {[%emt 0:00:31]} 91. Rd2 {[%emt 0:00:00]} Qe7 {[%emt 0:01:04]} 92. d6 {[%emt 0:03:00]} cxd6 {[%emt 0:00:28]} 93. Nxb6 {[%emt 0:00:30]} Bxa2 {[%emt 0:00:44]} 94. Nxa8 {[%emt 0:03:30]} Qa7 {[%emt 0:00:37]} 95. Rxa2 {[%emt 0:00:30]} Qxa8 {[%emt 0:00:00]} 96. Qc4 {[%emt 0:00:30]} Ne7 {[%emt 0:00:19]} 97. Rd2 {[%emt 0:00:30]} Qb8 {[%emt 0:00:35]} 98. Qe6 {[%emt 0:00:30]} Nc8 {[%emt 0:00:37]} 99. Qd7+ {[%emt 0:00:30]} Kg8 {[%emt 0:00:22]} 100. Qe8+ {[%emt 0:00:00]} Kg7 {[%emt 0:00:33]} 101. Qg6+ {[%emt 0:00:00]} 1-0

[Event "1st Turkish League 2017"]
[Site "Konya"]
[Date "2017.07.18"]
[Round "3"]
[White "Sahin, Handenur"]
[Black "Khomeriki, Nino"]
[Result "0-1"]
[ECO "C84"]
[WhiteElo "1897"]
[BlackElo "2305"]
[Annotator "NA"]
[PlyCount "114"]
[EventType "team-tourn"]
[EventCountry "TUR"]
[SourceTitle "playchess.com"]
[Source "ChessBase"]
[SourceQuality "1"]
[TimeControl "5400+30"]

1. e4 e5 2. Nf3 Nc6 3. Bb5 a6 4. Ba4 Nf6 5. d3 d6 6. c3 Be7 7. O-O O-O 8. Re1 b5 9. Bc2 h6 10. Nbd2 Re8 11. Nf1 Bf8 12. Ng3 Na5 13. a4 Bb7 14. h3 c5 15. Nf5 d5 16. Qe2 d4 17. Bd2 Nc6 18. Bb3 dxc3 19. bxc3 b4 20. g4 Na5 21. Bc2 b3 22. Bb1 Nd7 23. g5 h5 24. Kh2 c4 25. dxc4 Nc5 26. Rg1 g6 27. Nh6+ Kg7 28. Nh4 Qd7 29. Qf3 Qe6 30. N4f5+ Kh7 31. Ne3 Bxh6 32. gxh6 Rac8 33. Nd5 Nd7 34. Bd3 Nxc4 35. Bg5 Ncb6 36. c4 a5 37. Ra3 Nxc4 38. Bxc4 Rxc4 39. Qxb3 Ba6 40. Qf3 Rb8 41. Rc3 Rxc3 42. Qxc3 Bb7 43. Qxa5 Ra8 44. Qb5 Bc6 45. Qd3 Rxa4 46. Be3 Nf6 47. Nc7 Qe7 48. Bg5 Qxc7 49. Bxf6 Rxe4 50. Qb3 Rf4 51. Bg5 Rxf2+ 52. Kg3 Rf5 53. Kh4 Rf3 54. Qb2 Bd7 55. Rg3 Qc4+ 56. Rg4 Bxg4 57. Qxe5 Rxh3# 0-1

[Event "1st Turkish League 2017"]
[Site "Konya"]
[Date "2017.07.18"]
[Round "3"]
[White "Coban, Mete Sadik"]
[Black "Okus, Melih"]
[Result "1/2-1/2"]
[ECO "B22"]
[WhiteElo "1894"]
[BlackElo "2041"]
[Annotator "NA"]
[PlyCount "61"]
[EventType "team-tourn"]
[EventCountry "TUR"]
[SourceTitle "playchess.com"]
[Source "ChessBase"]
[SourceQuality "1"]
[TimeControl "5400+30"]

1. e4 {[%emt 0:00:30]} c5 {[%emt 0:01:00]} 2. Nf3 {[%emt 0:00:30]} e6 {[%emt 0:00:30]} 3. c3 {[%emt 0:01:30]} d5 {[%emt 0:00:30]} 4. exd5 {[%emt 0:01:30]} Qxd5 {[%emt 0:01:30]} 5. d4 {[%emt 0:02:30]} Nf6 {[%emt 0:00:30]} 6. Bd3 {[%emt 0:03:30]} Be7 {[%emt 0:03:30]} 7. O-O {[%emt 0:13:30]} O-O {[%emt 0:00:30]} 8. Be3 {[%emt 0:01:30]} cxd4 {[%emt 0:03:30]} 9. cxd4 {[%emt 0:00:30]} Nc6 {[%emt 0:01:30]} 10. Nc3 {[%emt 0:00:30]} Qd6 {[%emt 0:00:30]} 11. Rc1 {[%emt 0:07:30]} a6 {[%emt 0:06:30]} 12. Re1 {[%emt 0:07:30]} Nb4 {[%emt 0:02:30]} 13. Bb1 {[%emt 0:00:30]} Nbd5 {[%emt 0:03:30]} 14. Bg5 {[%emt 0:02:30]} b5 {[%emt 0:21:30]} 15. Qe2 {[%emt 0:18:30]} Nxc3 {[%emt 0:05:30]} 16. bxc3 {[%emt 0:06:30]} Bb7 {[%emt 0:00:30]} 17. Ne5 {[%emt 0:01:30]} g6 {[%emt 0:08:30]} 18. a4 {[%emt 0:08:30]} Nd7 {[%emt 0:12:30]} 19. Bxe7 {[%emt 0:00:56]} Qxe7 {[%emt 0:00:00]} 20. axb5 {[%emt 0:00:34]} Nxe5 {[%emt 0:00:00]} 21. Qxe5 {[%emt 0:00:18]} axb5 {[%emt 0:00:30]} 22. Qxb5 {[%emt 0:00:55]} Rfb8 {[%emt 0:00:00]} 23. Qe5 {[%emt 0:00:00]} Rd8 {[%emt 0:06:00]} 24. Be4 {[%emt 0:02:35]} Bxe4 {[%emt 0:00:00]} 25. Qxe4 {[%emt 0:00:07]} Ra5 {[%emt 0:01:00]} 26. Red1 {[%emt 0:01:46]} Qf6 {[%emt 0:01:30]} 27. c4 {[%emt 0:02:17]} Ra2 {[%emt 0:01:03]} 28. Qe3 {[%emt 0:00:07]} Rb8 {[%emt 0:02:55]} 29. Rd2 {[%emt 0:00:23]} Ra5 {[%emt 0:00:54]} 30. Rdd1 {[%emt 0:00:15]} Ra2 {[%emt 0:00:04]} 31. Rd2 {[%emt 0:00:03]} 1/2-1/2

[Event "1st Turkish League 2017"]
[Site "Konya"]
[Date "2017.07.18"]
[Round "3"]
[White "Mutlu, Beste"]
[Black "Sahin, Hayrun Nisa"]
[Result "0-1"]
[ECO "B38"]
[WhiteElo "1712"]
[BlackElo "1576"]
[Annotator "NA"]
[PlyCount "78"]
[EventType "team-tourn"]
[EventCountry "TUR"]
[SourceTitle "playchess.com"]
[Source "ChessBase"]
[SourceQuality "1"]
[TimeControl "5400+30"]

1. e4 {[%emt 0:00:30]} c5 {[%emt 0:01:00]} 2. Nf3 {[%emt 0:00:30]} g6 {[%emt 0:00:30]} 3. d4 {[%emt 0:00:00]} cxd4 {[%emt 0:00:30]} 4. Nxd4 {[%emt 0:00:00]} Bg7 {[%emt 0:00:30]} 5. c4 {[%emt 0:00:00]} Nc6 {[%emt 0:00:00]} 6. Be3 {[%emt 0:00:00]} Nf6 {[%emt 0:00:00]} 7. Nc3 {[%emt 0:00:30]} d6 {[%emt 0:00:30]} 8. Be2 {[%emt 0:00:30]} Nxd4 {[%emt 0:00:00]} 9. Bxd4 {[%emt 0:00:00]} a5 {[%emt 0:00:00]} 10. O-O {[%emt 0:06:00]} O-O {[%emt 0:02:30]} 11. b3 {[%emt 0:03:30]} Nd7 {[%emt 0:03:30]} 12. Bxg7 {[%emt 0:12:30]} Kxg7 {[%emt 0:00:00]} 13. Kh1 {[%emt 0:01:30]} Nc5 {[%emt 0:14:00]} 14. Qd4+ {[%emt 0:08:30]} Kg8 {[%emt 0:02:30]} 15. f4 {[%emt 0:01:30]} Ne6 {[%emt 0:09:30]} 16. Qe3 {[%emt 0:03:30]} Ng7 {[%emt 0:07:30]} 17. Rad1 {[%emt 0:05:30]} Bd7 {[%emt 0:02:30]} 18. Nd5 {[%emt 0:02:30]} Bc6 {[%emt 0:04:30]} 19. c5 {[%emt 0:05:30]} Bxd5 {[%emt 0:05:30]} 20. Rxd5 {[%emt 0:00:30]} Qc7 {[%emt 0:00:30]} 21. cxd6 {[%emt 0:01:30]} exd6 {[%emt 0:00:30]} 22. Qd2 {[%emt 0:07:30]} Rfd8 {[%emt 0:02:30]} 23. Rc1 {[%emt 0:03:30]} Qe7 {[%emt 0:00:30]} 24. Rxa5 {[%emt 0:05:30]} Qxe4 {[%emt 0:04:30]} 25. Bf3 {[%emt 0:02:30]} Qe7 {[%emt 0:01:30]} 26. Rb5 {[%emt 0:01:30]} Rd7 {[%emt 0:05:30]} 27. g3 {[%emt 0:07:30]} Rb8 {[%emt 0:10:30]} 28. a4 {[%emt 0:12:22]} Ne6 {[%emt 0:04:20]} 29. a5 {[%emt 0:03:38]} Rdd8 {[%emt 0:01:35]} 30. Bd5 {[%emt 0:04:15]} Qd7 {[%emt 0:01:31]} 31. Rb6 {[%emt 0:00:59]} Nc5 {[%emt 0:00:23]} 32. Rd1 {[%emt 0:00:33]} Qe7 {[%emt 0:03:53]} 33. Re1 {[%emt 0:01:16]} Qc7 {[%emt 0:00:32]} 34. Qg2 {[%emt 0:00:49]} Nd7 {[%emt 0:00:30]} 35. Rxb7 {[%emt 0:00:30]} Rxb7 {[%emt 0:00:30]} 36. Bxb7 {[%emt 0:00:30]} Qxa5 {[%emt 0:00:00]} 37. Re7 {[%emt 0:00:11]} Nf6 {[%emt 0:01:07]} 38. Qb2 {[%emt 0:00:35]} Nd5 {[%emt 0:03:10]} 39. Re1 {[%emt 0:00:45]} Qxe1+ {[%emt 0:00:05]} 0-1